bitfinex/quotes_BTCUSD_20220405
["timestamp","ask_amount","ask_price","bid_price","bid_amount"]
[1649134441260,0.29412349,46807.0,46806.0,0.00593767]
[1649134441657,0.15354986,46807.0,46806.0,0.00593767]
[1649134443078,0.29412349,46807.0,46806.0,0.00593767]
[1649134446078,0.15354986,46807.0,46806.0,0.00593767]
[1649134446233,0.45354986,46807.0,46806.0,0.00593767]
[1649134446328,0.59412349,46807.0,46806.0,0.00593767]
[1649134450702,0.45354986,46807.0,46806.0,0.00593767]
[1649134450900,0.59412349,46807.0,46806.0,0.00593767]
[1649134452851,0.45354986,46807.0,46806.0,0.00593767]
[1649134453052,0.59412349,46807.0,46806.0,0.00593767]
[1649134456031,0.59412349,46807.0,46806.0,0.00587198]
[1649134456587,0.45354986,46807.0,46806.0,0.00587198]
[1649134456987,0.59412349,46807.0,46806.0,0.00587198]
[1649134462339,0.45354986,46807.0,46806.0,0.00587198]
[1649134462546,0.59413785,46807.0,46806.0,0.00587198]
[1649134462792,0.15354986,46807.0,46806.0,0.00587198]
[1649134464894,0.142732,46807.0,46806.0,0.00587198]
[1649134465350,0.092732,46807.0,46806.0,0.00587198]
[1649134465450,0.14058799,46808.0,46806.0,0.00587198]
[1649134465902,0.31068,46820.0,46806.0,0.00587198]
[1649134465903,0.06366313,46807.0,46806.0,0.00587198]
[1649134466000,0.06366313,46807.0,46806.0,0.05587198]
[1649134466100,0.06366313,46807.0,46806.0,0.00587198]
[1649134472475,0.01081578,46807.0,46806.0,0.00587198]
[1649134473476,0.31081578,46807.0,46806.0,0.00587198]
[1649134473779,0.36081578,46807.0,46806.0,0.00587198]
[1649134474079,0.36081578,46807.0,46806.0,0.00567698]
[1649134474831,0.41424978,46807.0,46806.0,0.00567698]
[1649134475232,0.11424978,46807.0,46806.0,0.00567698]
[1649134475534,0.06081578,46807.0,46806.0,0.00567698]
[1649134475842,0.01081578,46807.0,46806.0,0.00567698]
[1649134486749,0.05,46810.0,46806.0,0.00567698]
[1649134486850,0.14058799,46811.0,46806.0,0.00567698]
[1649134486954,0.19058799,46811.0,46806.0,0.00567698]
[1649134487350,0.19058799,46811.0,46806.0,0.00622891]
[1649134487802,0.27120517,46810.0,46806.0,0.00622891]
[1649134488103,0.06366313,46807.0,46806.0,0.00622891]
[1649134488293,0.06366313,46807.0,46806.0,0.00567698]
[1649134489443,0.36366313,46807.0,46806.0,0.00567698]
[1649134491299,0.3,46807.0,46806.0,0.00567698]
[1649134491398,0.31081578,46807.0,46806.0,0.00567698]
[1649134492181,0.36081578,46807.0,46806.0,0.00567698]
[1649134493335,0.36081578,46807.0,46804.0,0.00055176]
[1649134493432,0.01081578,46805.0,46804.0,0.00055176]
[1649134494336,0.01081578,46805.0,46803.0,0.053426]
[1649134494435,0.40343363,46807.0,46803.0,0.053426]
[1649134495603,0.40343363,46807.0,46803.0,0.05330693]
[1649134495753,0.40343363,46807.0,46803.0,0.05385871]
[1649134496354,0.0393,46806.0,46803.0,0.05385871]
[1649134496707,0.0393,46806.0,46803.0,0.05330693]
[1649134501396,0.10343363,46807.0,46803.0,0.05330693]
[1649134502448,0.41100113,46807.0,46803.0,0.05330693]
[1649134502649,0.05,46807.0,46803.0,0.05330693]
[1649134502850,0.29744273,46811.0,46803.0,0.05330693]
[1649134503000,0.29744273,46811.0,46803.0,0.05391747]
[1649134503331,0.15685474,46811.0,46803.0,0.05391747]
[1649134503783,0.40821037,46811.0,46803.0,0.05391747]
[1649134503884,0.40821037,46811.0,46803.0,0.05330693]
[1649134504083,0.40821037,46811.0,46805.0,0.00061052]
[1649134505186,0.40821037,46811.0,46803.0,0.05330693]
[1649134505286,0.40821037,46811.0,46806.0,0.00058759]
[1649134505387,0.01081566,46807.0,46806.0,0.00058759]
[1649134506340,0.01081566,46807.0,46803.0,0.31553198]
[1649134506440,0.40821037,46811.0,46803.0,0.31553198]
[1649134506541,0.40821037,46811.0,46804.0,0.00056644]
[1649134507475,0.40821037,46811.0,46803.0,0.05330693]
[1649134507726,0.40821037,46811.0,46805.0,0.23378394]
[1649134507822,0.40821037,46811.0,46805.0,0.00056643]
[1649134508674,0.40821037,46811.0,46803.0,0.05330693]
[1649134508874,0.3544414,46810.0,46803.0,0.05330693]
[1649134508976,0.106865,46810.0,46806.0,0.00056868]
[1649134509074,0.01081555,46807.0,46806.0,0.00056868]
[1649134509880,0.01081555,46807.0,46803.0,0.05330693]
[1649134509977,0.05343321,46807.0,46802.0,0.106852]
[1649134510127,0.053434,46806.0,46804.0,0.00054981]
[1649134511182,0.053434,46806.0,46802.0,0.106852]
[1649134511386,0.053434,46806.0,46803.0,0.00054982]
[1649134512283,0.053434,46806.0,46802.0,0.106852]
[1649134512588,0.053434,46806.0,46802.0,0.1074035]
[1649134513586,0.053434,46806.0,46802.0,0.106852]
[1649134513687,0.053434,46806.0,46802.0,0.10740351]
[1649134514730,0.053434,46806.0,46802.0,0.106852]
[1649134514984,0.053434,46806.0,46802.0,0.10740351]
[1649134515933,0.053434,46806.0,46802.0,0.106852]
[1649134516133,0.053434,46806.0,46802.0,0.10740343]
[1649134517086,0.053434,46806.0,46802.0,0.106852]
[1649134517338,0.053434,46806.0,46802.0,0.10740334]
[1649134518102,0.30960158,46803.0,46802.0,0.10740334]
[1649134518202,0.30960158,46803.0,46802.0,0.10729994]
[1649134518350,0.053434,46806.0,46802.0,0.1067486]
[1649134519252,0.27341009,46806.0,46802.0,0.1067486]
[1649134519702,0.27341009,46806.0,46802.0,0.10729995]
[1649134520109,0.053434,46806.0,46802.0,0.10729995]
[1649134520758,0.053434,46806.0,46802.0,0.1067486]
[1649134520904,0.053434,46806.0,46802.0,0.10729995]
[1649134521931,0.053434,46806.0,46802.0,0.1067486]
[1649134522131,0.053434,46806.0,46802.0,0.10729995]
[1649134523134,0.053434,46806.0,46802.0,0.1067486]
[1649134523389,0.3,46805.0,46802.0,0.00055135]
[1649134523541,0.49961361,46805.0,46802.0,0.00055135]
[1649134523636,0.54961361,46805.0,46802.0,0.00055135]
[1649134523735,0.24961361,46805.0,46802.0,0.00055135]
[1649134523839,1.41179821,46803.0,46802.0,0.00055135]
[1649134524035,1.50109821,46803.0,46802.0,0.00055135]
[1649134524236,1.6416862,46803.0,46802.0,0.00055135]
[1649134524339,1.6416862,46803.0,46801.0,0.01]
[1649134524489,1.93505286,46803.0,46801.0,0.01]
[1649134524737,0.14058799,46802.0,46801.0,0.01]
[1649134524886,0.19058799,46802.0,46801.0,0.01]
[1649134524987,0.22988799,46802.0,46801.0,0.01]
[1649134525438,0.24070678,46802.0,46801.0,0.01]
[1649134525601,0.54070678,46802.0,46801.0,0.01]
[1649134525800,0.52988799,46802.0,46801.0,0.01]
[1649134525902,0.54070666,46802.0,46801.0,0.01]
[1649134526001,0.52988799,46802.0,46801.0,0.01]
[1649134526102,0.5407062,46802.0,46801.0,0.01]
[1649134530009,0.2407062,46802.0,46801.0,0.01]
[1649134530612,1.12241278,46802.0,46801.0,0.01]
[1649134531711,1.30904044,46802.0,46801.0,0.01]
[1649134532311,1.30904021,46802.0,46801.0,0.01]
[1649134535940,1.36247621,46802.0,46801.0,0.01]
[1649134536692,1.17584855,46802.0,46801.0,0.01]
[1649134541563,1.52399639,46802.0,46801.0,0.01]
[1649134541862,1.52399639,46802.0,46801.0,0.00993253]
[1649134542666,1.46033326,46802.0,46801.0,0.00993253]
[1649134543066,1.52399639,46802.0,46801.0,0.00993253]
[1649134543915,1.46033326,46802.0,46801.0,0.00993253]
[1649134544115,1.52399639,46802.0,46801.0,0.00993253]
[1649134544547,1.46033326,46802.0,46801.0,0.00993253]
[1649134544647,1.52399639,46802.0,46801.0,0.00993253]
[1649134545449,1.46033326,46802.0,46801.0,0.00993253]
[1649134545550,1.47115181,46802.0,46801.0,0.00993253]
[1649134546298,1.46033326,46802.0,46801.0,0.00993253]
[1649134546800,1.46133326,46802.0,46801.0,0.00993253]
[1649134548193,1.46133326,46802.0,46801.0,0.00957731]
[1649134548399,1.52499639,46802.0,46801.0,0.00957731]
[1649134548495,1.46133326,46802.0,46801.0,0.00957731]
[1649134548644,1.52499639,46802.0,46801.0,0.00957731]
[1649134549445,1.4721502,46802.0,46801.0,0.00957731]
[1649134549756,1.4221502,46802.0,46801.0,0.00957731]
[1649134549846,1.4721502,46802.0,46801.0,0.00957731]
[1649134550149,1.4221502,46802.0,46801.0,0.00957731]
[1649134552142,1.4721502,46802.0,46801.0,0.00957731]
[1649134554245,1.46133326,46802.0,46801.0,0.00957731]
[1649134554346,1.47214996,46802.0,46801.0,0.00957731]
[1649134556092,1.42214996,46802.0,46801.0,0.00957731]
[1649134557196,1.47214996,46802.0,46801.0,0.00957731]
[1649134557298,1.49857082,46802.0,46801.0,0.00957731]
[1649134557952,1.49848358,46802.0,46801.0,0.00957731]
[1649134558253,1.54848358,46802.0,46801.0,0.00957731]
[1649134561199,1.49848358,46802.0,46801.0,0.00957731]
[1649134562804,1.20318089,46802.0,46801.0,0.00957731]
[1649134563145,1.25318089,46802.0,46801.0,0.00957731]
[1649134563798,1.48849258,46802.0,46801.0,0.00957731]
[1649134564198,1.43849258,46802.0,46801.0,0.00957731]
[1649134565604,1.19236419,46802.0,46801.0,0.00957731]
[1649134565706,1.09971543,46802.0,46801.0,0.00957731]
[1649134565854,1.07329457,46802.0,46801.0,0.00957731]
[1649134566057,1.02329457,46802.0,46801.0,0.00957731]
[1649134578364,1.32329457,46802.0,46801.0,0.00957731]
[1649134579216,1.32329457,46802.0,46801.0,0.00949928]
[1649134583398,1.37329457,46802.0,46801.0,0.00949928]
[1649134583698,1.41259457,46802.0,46801.0,0.00949928]
[1649134585720,1.4,46801.0,46789.0,0.25489932]
[1649134585820,1.42641956,46801.0,46799.0,0.00055137]
[1649134585920,1.51571956,46801.0,46799.0,0.00055137]
[1649134586020,0.14158799,46800.0,46799.0,0.00055137]
[1649134586370,0.49158799,46800.0,46799.0,0.00055137]
[1649134586621,0.351,46800.0,46799.0,0.00055137]
[1649134586825,0.40444,46800.0,46789.0,0.01069]
[1649134587021,0.40444,46800.0,46797.0,0.00055139]
[1649134587022,0.40344,46800.0,46797.0,0.00055139]
[1649134588026,0.40344,46800.0,46788.0,0.88889808]
[1649134588224,0.40344,46800.0,46796.0,0.0005514]
[1649134588325,0.05344,46800.0,46796.0,0.0005514]
[1649134589227,0.05344,46800.0,46788.0,0.88889808]
[1649134589359,0.05344,46800.0,46796.0,0.0005514]
[1649134589749,0.21700755,46801.0,46796.0,0.0005514]
[1649134590354,0.21700755,46801.0,46792.0,0.25831346]
[1649134590453,0.21700755,46801.0,46788.0,0.88889808]
[1649134590553,0.21700755,46801.0,46796.0,0.0005514]
[1649134591058,0.001,46797.0,46796.0,0.0005514]
[1649134591556,0.001,46797.0,46791.0,0.30536804]
[1649134591756,0.3,46800.0,46794.0,0.00055257]
[1649134591866,0.37535055,46800.0,46794.0,0.00055257]
[1649134592207,0.05344,46799.0,46794.0,0.00055257]
[1649134592761,0.05344,46799.0,46788.0,0.87820808]
[1649134592960,0.05344,46799.0,46794.0,0.00055373]
[1649134593999,0.05344,46799.0,46788.0,0.87820808]
[1649134594098,0.05344,46799.0,46790.0,0.25744962]
[1649134594198,0.05344,46799.0,46794.0,0.00055373]
[1649134594454,0.06366313,46795.0,46794.0,0.00055373]
[1649134595252,0.06366313,46795.0,46790.0,0.25744962]
[1649134595353,0.10344,46799.0,46792.0,0.00055363]
[1649134595506,0.05344,46799.0,46792.0,0.00055363]
[1649134596052,0.001,46793.0,46792.0,0.00055363]
[1649134596353,0.001,46793.0,46788.0,0.87820808]
[1649134596455,0.001,46793.0,46789.0,0.320674]
[1649134596553,0.001,46793.0,46790.0,0.00055345]
[1649134597260,0.001,46793.0,46788.0,0.87376153]
[1649134597710,0.001,46793.0,46789.0,0.320674]
[1649134597911,0.001,46793.0,46791.0,0.28699514]
[1649134598613,0.001,46793.0,46788.0,0.87376153]
[1649134598714,0.001,46793.0,46789.0,0.320674]
[1649134599667,0.001,46793.0,46791.0,0.27697679]
[1649134599869,0.001,46793.0,46791.0,0.27678179]
[1649134599967,0.001,46793.0,46788.0,0.87376153]
[1649134600067,0.001,46793.0,46789.0,0.320674]
[1649134601000,0.001,46793.0,46792.0,0.27233482]
[1649134601199,0.001,46793.0,46789.0,0.320674]
[1649134602702,0.001,46793.0,46791.0,0.28738699]
[1649134602801,0.001,46793.0,46789.0,0.320674]
[1649134604006,0.001,46793.0,46790.0,0.28238814]
[1649134604155,0.001,46793.0,46791.0,0.320674]
[1649134612257,0.001,46793.0,46789.0,0.320674]
[1649134613007,0.001,46793.0,46792.0,0.26207184]
[1649134613106,0.001,46793.0,46792.0,0.58274584]
[1649134613861,0.001,46793.0,46792.0,0.320674]
[1649134613962,0.001,46793.0,46789.0,0.320674]
[1649134614467,0.001,46793.0,46789.0,0.32009426]
[1649134615064,0.001,46793.0,46791.0,0.28813351]
[1649134615163,0.001,46793.0,46792.0,0.320674]
[1649134615266,0.001,46793.0,46791.0,0.28813351]
[1649134615365,0.001,46793.0,46792.0,0.320836]
[1649134615465,0.001,46793.0,46788.0,0.87431504]
[1649134615603,0.001,46793.0,46789.0,0.320836]
[1649134616310,0.001,46793.0,46792.0,0.320836]
[1649134623117,0.001,46793.0,46789.0,0.320836]
[1649134623975,0.001,46793.0,46789.0,0.56778961]
[1649134629729,0.001,46793.0,46789.0,0.320836]
[1649134630837,0.001,46793.0,46790.0,0.23704969]
[1649134630937,0.001,46793.0,46791.0,0.320836]
[1649134634572,0.001,46793.0,46791.0,0.32075861]
[1649134636679,0.001,46793.0,46792.0,0.320836]
[1649134638477,0.001,46793.0,46792.0,0.5680589]
[1649134639377,0.001,46793.0,46792.0,0.320836]
[1649134640732,0.001,46793.0,46792.0,0.315836]
[1649134645670,0.001,46793.0,46792.0,0.310836]
[1649134650574,0.001,46793.0,46792.0,0.320836]
[1649134650977,0.001,46793.0,46789.0,0.320832]
[1649134651527,0.001,46793.0,46789.0,0.57759604]
[1649134666602,0.001,46793.0,46789.0,0.320832]
[1649134667651,0.001,46793.0,46790.0,0.23564351]
[1649134667751,0.001,46793.0,46790.0,0.320832]
[1649134667852,0.001,46793.0,46789.0,0.320832]
[1649134667951,0.001,46793.0,46790.0,0.320832]
[1649134668125,0.001,46793.0,46789.0,0.320832]
[1649134668722,0.001,46793.0,46789.0,0.62242581]
[1649134670076,0.001,46793.0,46789.0,0.62233488]
[1649134673999,0.001,46793.0,46788.0,0.87431498]
[1649134674399,0.001,46793.0,46788.0,0.87376153]
[1649134674601,0.001,46793.0,46788.0,0.87431498]
[1649134674702,0.001,46793.0,46789.0,0.320846]
[1649134674903,0.25153729,46793.0,46789.0,0.320846]
[1649134675005,0.25153729,46793.0,46788.0,1.10781122]
[1649134675202,0.25153729,46793.0,46789.0,0.320846]
[1649134675404,0.25153729,46793.0,46788.0,1.10781122]
[1649134675505,0.25153729,46793.0,46789.0,0.320846]
[1649134675733,0.001,46793.0,46789.0,0.320846]
[1649134676682,0.001,46793.0,46790.0,0.30017069]
[1649134676785,0.001,46793.0,46791.0,0.320846]
[1649134679140,0.001,46793.0,46788.0,0.92774998]
[1649134679242,0.001,46793.0,46789.0,0.320846]
[1649134679381,0.001,46793.0,46788.0,0.87431498]
[1649134679578,0.001,46793.0,46789.0,0.320846]
[1649134679679,0.001,46793.0,46788.0,0.87431498]
[1649134679779,0.001,46793.0,46789.0,0.320846]
[1649134679879,0.001,46793.0,46788.0,0.87431498]
[1649134679981,0.001,46793.0,46789.0,0.320846]
[1649134680084,0.001,46793.0,46789.0,0.23213697]
[1649134680283,0.001,46793.0,46788.0,0.87431498]
[1649134680383,0.001,46793.0,46789.0,0.320846]
[1649134681386,0.001,46793.0,46791.0,0.23505361]
[1649134681484,0.001,46793.0,46792.0,0.320846]
[1649134681887,0.001,46793.0,46789.0,0.320846]
[1649134682487,0.001,46793.0,46789.0,0.58114154]
[1649134690086,0.001,46793.0,46789.0,0.26029554]
[1649134690188,0.001,46793.0,46790.0,0.320846]
[1649134690286,0.001,46793.0,46790.0,0.32075057]
[1649134691791,0.001,46793.0,46789.0,0.320846]
[1649134692592,0.001,46793.0,46789.0,0.62067531]
[1649134693946,0.001,46793.0,46789.0,0.320846]
[1649134709201,0.001,46793.0,46788.0,0.94951964]
[1649134709299,0.001,46793.0,46789.0,0.320839]
[1649134709430,0.001,46793.0,46788.0,0.95007309]
[1649134709929,0.001,46793.0,46788.0,0.89663809]
[1649134710029,0.001,46793.0,46789.0,0.320839]
[1649134712136,0.001,46793.0,46789.0,0.32075527]
[1649134714030,0.001,46793.0,46790.0,0.053432]
[1649134714129,0.001,46793.0,46791.0,0.320839]
[1649134714336,0.001,46793.0,46792.0,0.35]
[1649134714435,0.14062892,46799.0,46793.0,0.002]
[1649134714534,0.14062892,46799.0,46794.0,0.320838]
[1649134714632,0.14062892,46799.0,46795.0,0.3]
[1649134714784,0.32623927,46801.0,46796.0,0.35174105]
[1649134714886,0.32623927,46801.0,46796.0,0.40174105]
[1649134714981,0.14062892,46801.0,46796.0,0.40174105]
[1649134715082,0.14062892,46801.0,46796.0,0.424259]
[1649134715181,0.14062892,46801.0,46796.0,0.370838]
[1649134715286,0.14062892,46801.0,46796.0,0.05]
[1649134715385,0.2192758,46800.0,46796.0,0.05]
[1649134715486,0.14062892,46801.0,46795.0,0.29281474]
[1649134715585,0.14062892,46801.0,46795.0,0.05]
[1649134716532,1.12210595,46802.0,46795.0,0.05]
[1649134716735,0.2572025,46798.0,46795.0,0.05]
[1649134716891,1.12210595,46802.0,46795.0,0.05]
[1649134717690,0.88170658,46802.0,46795.0,0.05]
[1649134717890,1.12742666,46802.0,46795.0,0.05]
[1649134720094,1.12742666,46802.0,46794.0,0.103431]
[1649134721333,1.17742666,46802.0,46794.0,0.103431]
[1649134722540,1.17742666,46802.0,46795.0,0.320838]
[1649134722639,1.17742666,46802.0,46794.0,0.103431]
[1649134722840,1.17742666,46802.0,46795.0,0.320838]
[1649134722939,0.93170658,46802.0,46795.0,0.320838]
[1649134723240,0.93170658,46802.0,46794.0,0.103431]
[1649134723343,0.93170658,46802.0,46795.0,0.320838]
[1649134723443,0.93170658,46802.0,46794.0,0.103431]
[1649134723543,0.93170658,46802.0,46795.0,0.320838]
[1649134724042,0.28347189,46801.0,46795.0,0.320838]
[1649134724143,0.28347189,46801.0,46794.0,0.103431]
[1649134724242,0.28347189,46801.0,46795.0,0.370838]
[1649134724484,0.28347189,46801.0,46796.0,0.320838]
[1649134724581,0.28347189,46801.0,46795.0,0.05]
[1649134725683,0.93170658,46802.0,46795.0,0.05]
[1649134727045,0.25816594,46801.0,46795.0,0.05]
[1649134727738,0.25816594,46801.0,46796.0,0.320838]
[1649134727939,0.93170658,46802.0,46796.0,0.320838]
[1649134728038,0.93170658,46802.0,46795.0,0.05]
[1649134729085,0.26365939,46801.0,46795.0,0.05]
[1649134729185,0.93170658,46802.0,46795.0,0.05]
[1649134730288,0.28800448,46801.0,46795.0,0.05]
[1649134730989,0.28800448,46801.0,46796.0,0.320838]
[1649134731140,0.28800448,46801.0,46795.0,0.05]
[1649134731639,0.88170658,46802.0,46795.0,0.05]
[1649134732731,0.29686706,46801.0,46795.0,0.05]
[1649134733682,0.29686706,46801.0,46796.0,0.320838]
[1649134733835,0.88170658,46802.0,46795.0,0.05]
[1649134733935,0.88170658,46802.0,46796.0,0.320838]
[1649134734742,1.18790252,46802.0,46796.0,0.320838]
[1649134735137,1.18790252,46802.0,46796.0,0.3207314]
[1649134735439,0.88170658,46802.0,46796.0,0.3207314]
[1649134736495,0.88170658,46802.0,46797.0,0.320838]
[1649134741612,0.88170658,46802.0,46795.0,0.32079]
[1649134741713,0.14058632,46801.0,46795.0,0.32079]
[1649134744941,0.14058632,46801.0,46794.0,0.125]
[1649134745495,0.14058632,46801.0,46795.0,0.32079]
[1649134745646,0.14058632,46801.0,46794.0,0.125]
[1649134745795,0.14058632,46801.0,46795.0,0.32079]
[1649134745894,0.14058632,46801.0,46794.0,0.125]
[1649134745994,0.14058632,46801.0,46795.0,0.32079]
[1649134746094,0.38806874,46801.0,46794.0,0.125]
[1649134746195,0.38806874,46801.0,46795.0,0.32079]
[1649134746296,0.38806874,46801.0,46796.0,0.32079]
[1649134746395,0.14058632,46801.0,46796.0,0.32079]
[1649134748444,0.37166055,46801.0,46796.0,0.32079]
[1649134748996,0.23107423,46801.0,46796.0,0.32079]
[1649134749195,0.37166122,46801.0,46796.0,0.32079]
[1649134749597,0.23107423,46801.0,46796.0,0.32079]
[1649134752013,0.23107423,46801.0,46796.0,0.34579]
[1649134752364,0.88170658,46802.0,46796.0,0.34579]
[1649134754411,0.88170658,46802.0,46796.0,0.39579]
[1649134755009,1.18170658,46802.0,46796.0,0.075]
[1649134755108,0.88170658,46802.0,46796.0,0.05]
[1649134755309,0.88170658,46802.0,46794.0,0.32079]
[1649134755509,0.88170658,46802.0,46794.0,0.37079]
[1649134755613,1.18170658,46802.0,46794.0,0.37079]
[1649134755711,1.18170658,46802.0,46794.0,0.075]
[1649134755811,1.18170658,46802.0,46794.0,0.025]
[1649134755910,0.14058469,46801.0,46794.0,0.025]
[1649134756014,0.14058469,46801.0,46795.0,0.32079]
[1649134756213,0.14058469,46801.0,46795.0,0.37079]
[1649134758238,0.88170658,46802.0,46795.0,0.37079]
[1649134758491,0.14058647,46801.0,46795.0,0.37079]
[1649134758691,0.88170658,46802.0,46795.0,0.37079]
[1649134759091,0.88170658,46802.0,46795.0,0.32079]
[1649134759890,0.88170658,46802.0,46795.0,0.32070657]
[1649134760592,0.85893506,46802.0,46795.0,0.32070657]
[1649134762990,0.85893506,46802.0,46795.0,0.37413016]
[1649134764940,0.85893506,46802.0,46795.0,0.32070657]
[1649134766540,0.14059742,46801.0,46795.0,0.32070657]
[1649134769250,0.25326002,46800.0,46795.0,0.32070657]
[1649134769503,0.14059742,46801.0,46795.0,0.32070657]
[1649134769854,0.14059742,46801.0,46795.0,0.34302008]
[1649134772359,0.14059742,46801.0,46795.0,0.32070657]
[1649134772460,0.14059742,46801.0,46795.0,0.34302008]
[1649134774570,0.85893506,46802.0,46795.0,0.34302008]
[1649134774972,0.85893506,46802.0,46797.0,0.32079]
[1649134777087,0.3,46801.0,46797.0,0.32079]
[1649134777190,0.3,46801.0,46793.0,0.02431446]
[1649134777191,0.3,46801.0,46794.0,0.01069]
[1649134777344,0.3,46801.0,46793.0,0.02431446]
[1649134777345,0.0393,46800.0,46793.0,0.02431446]
[1649134777440,0.01108,46799.0,46793.0,0.02431446]
[1649134777538,0.44058562,46801.0,46793.0,0.002]
[1649134777638,0.0393,46798.0,46793.0,0.002]
[1649134777788,0.3,46797.0,46793.0,0.002]
[1649134777988,0.0393,46796.0,46793.0,0.002]
[1649134778136,0.3,46795.0,46793.0,0.002]
[1649134778236,0.41973848,46794.0,46793.0,0.002]
[1649134778337,0.46985727,46794.0,46793.0,0.002]
[1649134778640,0.45903848,46794.0,46793.0,0.002]
[1649134778745,0.7698568,46794.0,46793.0,0.002]
[1649134780738,0.1240138,46796.0,46793.0,0.002]
[1649134780840,0.01081867,46794.0,46793.0,0.002]
[1649134781343,0.1633138,46796.0,46793.0,0.002]
[1649134786114,0.1583138,46796.0,46793.0,0.002]
[1649134787020,0.48785678,46796.0,46793.0,0.002]
[1649134787470,0.1583138,46796.0,46793.0,0.002]
[1649134788148,0.1190138,46796.0,46793.0,0.002]
[1649134788392,0.25747251,46795.0,46793.0,0.002]
[1649134788497,0.20361897,46794.0,46793.0,0.002]
[1649134788594,0.21469897,46794.0,46793.0,0.002]
[1649134788691,0.25749897,46794.0,46793.0,0.002]
[1649134788895,0.05388,46794.0,46793.0,0.002]
[1649134789391,0.10672481,46794.0,46793.0,0.002]
[1649134791301,0.05388,46794.0,46793.0,0.002]
[1649134801899,0.01108,46794.0,46793.0,0.002]
[1649134802799,0.053438,46799.0,46793.0,0.002]
[1649134802898,0.01108,46798.0,46793.0,0.002]
[1649134803145,0.01108,46798.0,46794.0,0.22542533]
[1649134803246,0.01108,46798.0,46796.0,0.05233754]
[1649134803348,0.053438,46799.0,46797.0,0.3]
[1649134803450,0.14062103,46801.0,46798.0,0.320787]
[1649134803552,0.14062103,46801.0,46797.0,0.3]
[1649134803650,0.14062103,46801.0,46798.0,0.320787]
[1649134803750,0.14062103,46801.0,46797.0,0.3]
[1649134803852,0.14062103,46801.0,46799.0,0.320787]
[1649134803949,0.14062103,46801.0,46800.0,0.320787]
[1649134804051,0.14062103,46801.0,46797.0,0.35342483]
[1649134804148,0.14062103,46801.0,46798.0,0.320787]
[1649134804549,0.14062103,46801.0,46800.0,0.45203515]
[1649134804651,0.14062103,46801.0,46800.0,0.77282215]
[1649134804767,0.14062103,46801.0,46800.0,0.82515969]
[1649134804851,0.14062103,46801.0,46800.0,1.12515969]
[1649134805253,0.14062103,46801.0,46800.0,0.82515969]
[1649134805354,0.14062103,46801.0,46800.0,1.12515969]
[1649134805458,0.14062103,46801.0,46800.0,1.17515969]
[1649134805556,0.85893506,46802.0,46800.0,1.17515969]
[1649134805656,0.85893506,46802.0,46801.0,0.5898585]
[1649134805957,0.99952527,46802.0,46801.0,0.320787]
[1649134806158,0.85893506,46802.0,46801.0,0.77282215]
[1649134806255,0.85893506,46802.0,46801.0,0.82515969]
[1649134806757,0.99952647,46802.0,46801.0,0.82515969]
[1649134806912,0.85893506,46802.0,46801.0,0.50437269]
[1649134807012,0.85893506,46802.0,46801.0,0.82515969]
[1649134807111,0.99952647,46802.0,46801.0,0.82515969]
[1649134807211,0.99952647,46802.0,46801.0,0.50437269]
[1649134808063,0.99952647,46802.0,46801.0,0.50430622]
[1649134808212,1.00065488,46802.0,46801.0,0.05233754]
[1649134808313,1.00065488,46802.0,46801.0,0.50430622]
[1649134808413,1.00065488,46802.0,46801.0,0.55430622]
[1649134808514,1.00065488,46802.0,46801.0,0.50430622]
[1649134808862,1.00065488,46802.0,46801.0,0.53276604]
[1649134808964,1.00895566,46802.0,46801.0,0.53276604]
[1649134809067,1.01725644,46802.0,46801.0,0.53276604]
[1649134809262,1.0188875,46802.0,46801.0,0.53276604]
[1649134810115,1.0188875,46802.0,46801.0,0.53237206]
[1649134810319,1.0188875,46802.0,46801.0,0.4804285]
[1649134810431,1.0188875,46802.0,46801.0,0.53237206]
[1649134811509,1.0188875,46802.0,46801.0,0.55678367]
[1649134813659,1.31335884,46802.0,46801.0,0.55678367]
[1649134813758,1.31335884,46802.0,46801.0,0.61020832]
[1649134813961,1.31335884,46802.0,46801.0,0.55678367]
[1649134815346,1.0188875,46802.0,46801.0,0.55678367]
[1649134816298,1.31274353,46802.0,46801.0,0.55678367]
[1649134818498,1.0188875,46802.0,46801.0,0.55678367]
[1649134820049,1.0188875,46802.0,46801.0,0.61020755]
[1649134820759,1.0188875,46802.0,46801.0,0.55678367]
[1649134821411,1.25339403,46802.0,46801.0,0.55678367]
[1649134823199,1.0188875,46802.0,46801.0,0.55678367]
[1649134824298,1.32425374,46802.0,46801.0,0.55678367]
[1649134824601,1.0188875,46802.0,46801.0,0.55678367]
[1649134825692,1.26190463,46802.0,46801.0,0.55678367]
[1649134826094,1.26181199,46802.0,46801.0,0.55678367]
[1649134827699,1.26068358,46802.0,46801.0,0.55678367]
[1649134830964,1.01766645,46802.0,46801.0,0.55678367]
[1649134833543,1.31766645,46802.0,46801.0,0.55678367]
[1649134835046,1.01766645,46802.0,46801.0,0.55678367]
[1649134837694,1.01766645,46802.0,46801.0,0.61020847]
[1649134837801,1.01766645,46802.0,46801.0,0.93099547]
[1649134839806,0.91516645,46802.0,46801.0,1.58549547]
[1649134839904,0.00055051,46811.0,46802.0,3.26858925]
[1649134840006,0.00055051,46811.0,46803.0,0.28947309]
[1649134840111,0.00055051,46811.0,46803.0,0.374196]
[1649134840205,0.00055051,46811.0,46804.0,0.05341107]
[1649134840307,0.005,46819.0,46807.0,0.07635517]
[1649134840405,0.005,46819.0,46807.0,0.50391224]
[1649134840504,0.005,46819.0,46808.0,0.02845982]
[1649134840658,0.00055053,46811.0,46808.0,0.31825365]
[1649134840760,0.00055053,46811.0,46808.0,0.02845982]
[1649134840857,0.00055053,46811.0,46809.0,0.50071825]
[1649134840960,0.00055053,46811.0,46810.0,0.320787]
[1649134841059,0.00055053,46811.0,46809.0,0.50071825]
[1649134841161,0.00055053,46811.0,46810.0,0.320787]
[1649134841259,0.00055053,46811.0,46809.0,0.50071825]
[1649134841463,0.005,46819.0,46810.0,0.320787]
[1649134841561,0.005,46819.0,46809.0,0.50071825]
[1649134841659,0.00055052,46812.0,46809.0,0.50071825]
[1649134841810,0.00055052,46812.0,46810.0,0.320787]
[1649134841909,0.00055052,46812.0,46811.0,0.320787]